bitfinex/quotes_SOLUSD_20230120
["timestamp","ask_amount","ask_price","bid_price","bid_amount"]
[1674234205783,61.56412185,22.085,22.073,10.0]
[1674234205991,70.97,22.084,22.073,10.0]
[1674234206310,111.4582036,22.084,22.073,10.0]
[1674234206543,125.67521831,22.083,22.073,10.0]
[1674234206749,33.97,22.082,22.073,10.0]
[1674234206959,0.96,22.081,22.073,10.0]
[1674234207171,125.67521831,22.083,22.073,10.0]
[1674234207365,0.96,22.082,22.073,10.0]
[1674234207791,64.11109646,22.083,22.073,10.0]
[1674234208207,20.0,22.084,22.073,10.0]
[1674234208842,61.56412185,22.084,22.073,10.0]
[1674234211275,125.67521831,22.084,22.073,10.0]
[1674234211986,64.11109646,22.084,22.073,10.0]
[1674234212836,125.67521831,22.084,22.073,10.0]
[1674234214713,50.97,22.083,22.073,10.0]
[1674234215136,64.11109646,22.082,22.073,10.0]
[1674234215347,17.0,22.081,22.073,10.0]
[1674234215779,52.36704871,22.08,22.073,10.0]
[1674234217246,0.00704871,22.08,22.073,10.0]
[1674234217443,24.11109646,22.081,22.073,10.0]
[1674234217659,20.0,22.086,22.073,10.0]
[1674234217884,20.0,22.097,22.073,10.0]
[1674234218096,18.48285563,22.095,22.073,10.0]
[1674234218322,53.95,22.094,22.073,10.0]
[1674234218847,112.50489646,22.094,22.073,10.0]
[1674234219060,251.90489646,22.094,22.073,10.0]
[1674234219371,18.48285563,22.093,22.073,10.0]
[1674234219680,165.46,22.09,22.073,10.0]
[1674234219877,70.96,22.089,22.073,10.0]
[1674234220082,33.96,22.089,22.073,10.0]
[1674234220309,18.48285563,22.089,22.073,10.0]
[1674234220516,44.18886,22.09,22.073,10.0]
[1674234220840,18.12886,22.09,22.073,10.0]
[1674234222089,18.12886,22.09,22.075,17.0]
[1674234222842,18.12886,22.09,22.076,10.0]
[1674234223656,50.96,22.089,22.076,10.0]
[1674234224814,33.96,22.089,22.076,10.0]
[1674234225024,18.12886,22.09,22.076,10.0]
[1674234225559,33.95,22.096,22.076,10.0]
[1674234225765,20.0,22.095,22.077,17.0]
[1674234225979,20.0,22.095,22.076,10.0]
[1674234226192,33.95,22.094,22.076,10.0]
[1674234226504,33.95,22.094,22.077,17.0]
[1674234227366,53.95,22.095,22.077,17.0]
[1674234227882,53.95,22.095,22.078,10.0]
[1674234228099,20.74147563,22.104,22.079,17.0]
[1674234228306,20.74147563,22.104,22.08,53.98]
[1674234228520,18.05,22.108,22.081,17.0]
[1674234228831,20.0,22.107,22.083,10.0]
[1674234229059,157.45,22.114,22.084,50.97]
[1674234229263,157.45,22.114,22.085,111.5459]
[1674234229470,18.05,22.114,22.086,50.97]
[1674234229685,18.05,22.118,22.087,20.0]
[1674234229999,18.05,22.118,22.088,50.96]
[1674234230191,18.05,22.118,22.089,20.0]
[1674234230404,18.05,22.118,22.09,77.04]
[1674234231028,18.05,22.118,22.091,10.0]
[1674234231258,18.05,22.118,22.092,50.96]
[1674234231466,4.98218,22.119,22.092,50.96]
[1674234231790,4.98218,22.119,22.094,10.0]
[1674234232000,4.98218,22.119,22.095,50.95]
[1674234232317,4.98218,22.119,22.096,20.0]
[1674234232508,4.98218,22.119,22.097,50.95]
[1674234232722,18.100628,22.122,22.099,10.0]
[1674234232919,18.100628,22.122,22.1,50.94]
[1674234233123,18.100628,22.122,22.101,10.0]
[1674234233448,139.4,22.126,22.102,50.94]
[1674234233654,173.31,22.125,22.103,10.0]
[1674234234099,13.76054775,22.124,22.103,10.0]
[1674234234308,33.89,22.134,22.11,27.89]
[1674234234500,33.88,22.139,22.111,10.0]
[1674234235248,48.23541876,22.138,22.112,17.0]
[1674234235443,33.89,22.137,22.112,17.0]
[1674234235652,20.0,22.136,22.112,50.93]
[1674234235876,33.89,22.135,22.113,10.0]
[1674234236086,20.0,22.134,22.114,17.0]
[1674234236388,20.0,22.136,22.114,17.0]
[1674234236615,33.88,22.142,22.115,10.0]
[1674234236819,33.88,22.142,22.116,17.0]
[1674234237227,33.87,22.149,22.117,10.0]
[1674234237454,33.87,22.149,22.118,17.0]
[1674234237643,33.87,22.149,22.119,10.0]
[1674234237858,33.87,22.149,22.12,17.0]
[1674234238090,10.0,22.148,22.121,10.0]
[1674234238304,33.87,22.147,22.121,10.0]
[1674234238484,10.0,22.146,22.121,10.0]
[1674234238827,53.88,22.145,22.121,10.0]
[1674234239009,27.85,22.14,22.121,10.0]
[1674234239227,17.0,22.144,22.121,10.0]
[1674234239228,70.88,22.139,22.121,10.0]
[1674234239435,53.88,22.139,22.121,10.0]
[1674234240380,20.0,22.139,22.122,17.0]
[1674234240593,20.0,22.147,22.123,10.0]
[1674234240811,33.87,22.146,22.124,17.0]
[1674234241012,33.87,22.149,22.125,33.91]
[1674234241240,170.86034104,22.15,22.126,17.0]
[1674234241449,170.86034104,22.15,22.127,33.9]
[1674234241645,170.86034104,22.15,22.128,27.0]
[1674234241851,33.85,22.159,22.128,27.0]
[1674234242492,33.85,22.159,22.129,10.0]
[1674234242699,33.85,22.159,22.13,17.0]
[1674234242908,58.95712107,22.159,22.13,17.0]
[1674234243118,20.0,22.158,22.13,17.0]
[1674234243322,33.86,22.157,22.131,10.0]
[1674234243534,20.0,22.156,22.132,17.0]
[1674234243753,33.86,22.155,22.132,17.0]
[1674234243955,33.85,22.159,22.133,33.89]
[1674234244160,33.85,22.161,22.134,17.0]
[1674234244369,33.85,22.161,22.14,27.8]
[1674234244707,30.36047052,22.167,22.142,10.0]
[1674234244917,33.84,22.166,22.143,17.0]
[1674234245316,34.63331178,22.166,22.144,10.0]
[1674234245542,27.65,22.17,22.144,10.0]
[1674234245543,33.84,22.169,22.144,10.0]
[1674234245751,20.0,22.168,22.144,10.0]
[1674234245958,33.84,22.167,22.144,10.0]
[1674234246171,38.072146,22.166,22.144,10.0]
[1674234246387,33.84,22.165,22.144,10.0]
[1674234246593,27.65,22.16,22.144,10.0]
[1674234246908,70.85,22.159,22.144,10.0]
[1674234247128,124.7882239,22.159,22.144,10.0]
[1674234247311,53.9382239,22.158,22.144,10.0]
[1674234247528,33.86,22.157,22.144,10.0]
[1674234247738,20.0,22.156,22.144,10.0]
[1674234247958,17.0,22.155,22.144,10.0]
[1674234248169,20.0,22.154,22.144,10.0]
[1674234248787,20.0,22.164,22.144,10.0]
[1674234249026,33.83,22.172,22.145,17.0]
[1674234249207,33.83,22.177,22.15,27.8]
[1674234249417,33.83,22.177,22.151,133.7849]
[1674234249747,33.83,22.177,22.152,10.0]
[1674234249952,33.83,22.177,22.153,17.0]
[1674234250184,20.0,22.176,22.153,17.0]
[1674234250361,20.0,22.176,22.154,10.0]
[1674234250578,20.0,22.176,22.155,17.0]
[1674234250792,20.0,22.176,22.156,10.0]
[1674234251218,27.65,22.18,22.156,10.0]
[1674234251428,53.82,22.179,22.158,10.0]
[1674234252164,53.82,22.179,22.159,17.0]
[1674234252381,53.82,22.179,22.16,10.0]
[1674234252780,53.82,22.179,22.161,17.0]
[1674234253102,20.0,22.179,22.161,17.0]
[1674234253300,20.0,22.185,22.161,17.0]
[1674234253517,20.0,22.185,22.162,10.0]
[1674234253518,33.82,22.184,22.162,10.0]
[1674234253847,33.82,22.184,22.163,17.0]
[1674234254162,33.81,22.189,22.164,10.0]
[1674234254374,33.81,22.189,22.166,10.0]
[1674234254563,46.7440239,22.195,22.17,27.8]
[1674234254768,33.79,22.198,22.171,33.84]
[1674234254977,33.79,22.198,22.172,17.0]
[1674234255214,33.79,22.198,22.173,10.0]
[1674234255431,33.79,22.198,22.174,135.1239]
[1674234255640,33.79,22.199,22.174,135.1239]
[1674234255847,33.79,22.199,22.18,27.8]
[1674234256049,33.79,22.199,22.181,17.0]
[1674234256381,3663.048432,22.2,22.182,10.0]
[1674234256562,3663.048432,22.2,22.183,17.0]
[1674234256991,3663.048432,22.2,22.182,10.0]
[1674234257326,3663.048432,22.2,22.18,27.8]
[1674234257327,10.0,22.199,22.177,10.0]
[1674234257645,33.79,22.198,22.177,10.0]
[1674234257953,33.79,22.199,22.177,10.0]
[1674234258481,17.0,22.198,22.177,10.0]
[1674234258692,33.8,22.197,22.177,10.0]
[1674234258880,17.0,22.196,22.169,10.0]
[1674234259093,43.8,22.195,22.169,10.0]
[1674234259313,27.82,22.19,22.169,10.0]
[1674234259512,50.81,22.189,22.169,10.0]
[1674234259843,33.81,22.189,22.169,10.0]
[1674234260048,20.0,22.188,22.169,10.0]
[1674234260580,27.85,22.18,22.162,119.6351]
[1674234260765,53.82,22.179,22.162,119.6351]
[1674234260980,53.82,22.179,22.162,10.0]
[1674234261192,17.0,22.178,22.162,10.0]
[1674234261517,53.83,22.177,22.162,10.0]
[1674234262151,20.0,22.177,22.162,10.0]
[1674234262366,20.0,22.178,22.162,10.0]
[1674234262768,20.0,22.188,22.162,10.0]
[1674234262978,33.81,22.187,22.162,10.0]
[1674234263305,20.0,22.186,22.162,10.0]
[1674234263503,20.0,22.186,22.165,50.84]
[1674234263721,20.0,22.195,22.165,17.0]
[1674234264031,33.8,22.194,22.165,132.9801]
[1674234264364,20.0,22.193,22.166,10.0]
[1674234264554,27.82,22.19,22.166,10.0]
[1674234264766,53.81,22.189,22.166,10.0]
[1674234264989,139.4,22.188,22.166,10.0]
[1674234265185,53.81,22.187,22.166,10.0]
[1674234265935,17.0,22.186,22.166,10.0]
[1674234266163,17.0,22.186,22.161,10.0]
[1674234266164,27.82,22.18,22.161,10.0]
[1674234266341,53.82,22.179,22.161,10.0]
[1674234266569,20.0,22.179,22.161,10.0]
[1674234266975,17.0,22.186,22.161,10.0]
[1674234266976,193.22,22.182,22.161,10.0]
[1674234267305,17.0,22.178,22.161,10.0]
[1674234267521,53.83,22.177,22.161,10.0]
[1674234268017,20.0,22.177,22.161,10.0]
[1674234268228,20.0,22.178,22.161,10.0]
[1674234268547,17.0,22.177,22.156,10.0]
[1674234268775,53.83,22.176,22.156,10.0]
[1674234269178,10.0,22.174,22.156,10.0]
[1674234269494,27.82,22.17,22.147,33.87]
[1674234269705,210.24,22.169,22.147,112.9047]
[1674234269931,248.91198432,22.169,22.147,112.9047]
[1674234270132,38.67198432,22.168,22.147,112.9047]
[1674234270328,70.84,22.167,22.147,112.9047]
[1674234271185,70.84,22.167,22.148,10.0]
[1674234271813,70.84,22.167,22.141,43.88]
[1674234272022,27.85,22.16,22.141,10.0]
[1674234272235,20.0,22.159,22.141,10.0]
[1674234272433,33.86,22.158,22.138,10.0]
[1674234272644,37.0,22.157,22.138,10.0]
[1674234272855,33.86,22.156,22.138,10.0]
[1674234273067,37.0,22.155,22.138,10.0]
[1674234273275,20.0,22.155,22.138,10.0]
[1674234273721,20.0,22.158,22.138,10.0]
[1674234274254,20.0,22.158,22.138,43.89]
[1674234274434,20.0,22.165,22.138,43.89]
[1674234274649,33.85,22.164,22.138,43.89]
[1674234274856,20.0,22.163,22.139,17.0]
[1674234275070,33.85,22.162,22.14,10.0]
[1674234275281,20.0,22.161,22.14,10.0]
[1674234275485,33.85,22.16,22.14,10.0]
[1674234275696,20.0,22.159,22.14,10.0]
[1674234276239,20.0,22.165,22.14,10.0]
[1674234276437,27.65,22.16,22.14,10.0]
[1674234276764,53.85,22.159,22.14,10.0]
[1674234276980,53.85,22.159,22.135,10.0]
[1674234277170,17.0,22.158,22.135,10.0]
[1674234277375,53.86,22.157,22.135,10.0]
[1674234277835,20.0,22.157,22.135,10.0]
[1674234278017,20.0,22.158,22.137,33.89]
[1674234278231,20.0,22.164,22.138,10.0]
[1674234278555,27.65,22.16,22.138,10.0]
[1674234278749,53.85,22.159,22.138,10.0]
[1674234279381,17.0,22.158,22.138,10.0]
[1674234279693,53.86,22.157,22.138,10.0]
[1674234280111,20.0,22.157,22.138,10.0]
[1674234280444,20.0,22.158,22.14,27.8]
[1674234280644,20.0,22.163,22.14,27.8]
[1674234280852,20.0,22.168,22.141,17.0]
[1674234281184,33.84,22.167,22.143,10.0]
[1674234281368,20.0,22.168,22.143,10.0]
[1674234281369,20.0,22.166,22.144,33.88]
[1674234281596,20.0,22.168,22.145,17.0]
[1674234281938,10.0,22.178,22.147,10.0]
[1674234282114,33.83,22.177,22.148,17.0]
[1674234282745,10.0,22.176,22.148,17.0]
[1674234282976,33.83,22.175,22.148,17.0]
[1674234283295,167.22,22.17,22.146,10.0]
[1674234283489,53.84,22.169,22.146,10.0]
[1674234284536,53.84,22.169,22.147,17.0]
[1674234284752,20.0,22.169,22.147,17.0]
[1674234285294,20.0,22.173,22.147,17.0]
[1674234285512,33.83,22.172,22.147,17.0]
[1674234285817,20.0,22.171,22.148,10.0]
[1674234285996,33.84,22.17,22.148,10.0]
[1674234286211,20.0,22.169,22.148,10.0]
[1674234286459,33.84,22.168,22.148,10.0]
[1674234286634,20.0,22.167,22.146,10.0]
[1674234286844,33.84,22.166,22.146,10.0]
[1674234287057,20.0,22.165,22.146,10.0]
[1674234287511,33.85,22.164,22.146,10.0]
[1674234287995,20.0,22.165,22.146,10.0]
[1674234288206,20.0,22.168,22.146,10.0]
[1674234288416,33.84,22.167,22.146,10.0]
[1674234288944,33.84,22.169,22.146,10.0]
[1674234289386,33.83,22.174,22.147,17.0]
[1674234289587,10.0,22.173,22.147,17.0]
[1674234289796,33.83,22.172,22.147,17.0]
[1674234290118,10.0,22.17,22.148,17.0]
[1674234290307,53.84,22.169,22.146,10.0]
[1674234290742,20.0,22.169,22.146,10.0]
[1674234291064,50.84,22.168,22.146,10.0]
[1674234291259,159.4,22.167,22.146,10.0]
[1674234291474,33.84,22.166,22.146,10.0]
[1674234291699,20.0,22.165,22.146,10.0]
[1674234292299,33.85,22.164,22.146,10.0]
[1674234292514,20.0,22.165,22.146,10.0]
[1674234292737,20.0,22.167,22.146,10.0]
[1674234292930,33.84,22.166,22.146,10.0]
[1674234293144,20.0,22.165,22.146,10.0]
[1674234293897,20.0,22.166,22.146,10.0]
[1674234294118,184.32368694,22.165,22.146,10.0]
[1674234294431,17.0,22.164,22.146,10.0]
[1674234294625,33.84,22.165,22.146,10.0]
[1674234294832,10.0,22.165,22.146,10.0]
[1674234295049,10.0,22.165,22.145,10.0]
[1674234295362,10.0,22.165,22.137,115.1587]
[1674234295363,25.88,22.16,22.137,115.1587]
[1674234295579,173.25,22.159,22.137,115.1587]
[1674234295792,20.0,22.158,22.137,115.1587]
[1674234296008,139.4,22.156,22.137,115.1587]
[1674234296239,53.86,22.155,22.137,115.1587]
[1674234296414,17.0,22.154,22.137,115.1587]
[1674234296737,33.86,22.153,22.137,115.1587]
[1674234296946,33.86,22.154,22.137,115.1587]
[1674234297162,17.0,22.152,22.137,115.1587]
[1674234297390,33.87,22.151,22.137,115.1587]
[1674234297554,17.0,22.153,22.137,115.1587]
[1674234297555,33.86,22.152,22.137,115.1587]
[1674234297999,33.86,22.153,22.137,115.1587]
[1674234298208,37.0,22.152,22.137,115.1587]
[1674234298421,33.87,22.151,22.132,126.1279]
[1674234298612,20.0,22.15,22.134,9.0]
[1674234298826,139.4,22.149,22.134,9.0]
[1674234299038,70.87,22.148,22.134,9.0]
[1674234299240,19.5,22.147,22.134,9.0]
[1674234299452,17.0,22.146,22.134,9.0]
[1674234299682,33.88,22.145,22.134,9.0]
[1674234299891,19.5,22.147,22.134,9.0]
[1674234299892,19.0,22.147,22.134,9.0]
[1674234300103,33.87,22.149,22.134,9.0]
[1674234300308,17.0,22.148,22.134,9.0]
[1674234300625,25.83,22.14,22.089,24.40351397]
[1674234300817,33.88,22.139,22.111,148.9032]
[1674234301027,10.0,22.138,22.112,10.0]
[1674234301253,20.0,22.137,22.113,33.92]
[1674234301455,20.0,22.137,22.101,33.94]
[1674234301456,139.4,22.136,22.101,33.94]
[1674234301659,25.94,22.13,22.101,148.9132]
[1674234301868,10.0,22.128,22.102,10.0]
[1674234302111,70.9,22.127,22.102,10.0]
[1674234302420,70.9,22.127,22.103,33.94]
[1674234302614,53.9,22.127,22.103,33.94]
[1674234302819,33.9,22.129,22.103,33.94]
[1674234303029,33.88,22.139,22.104,10.0]
[1674234303361,20.0,22.138,22.105,33.94]
[1674234303562,33.89,22.137,22.111,10.0]
[1674234303773,33.88,22.139,22.113,10.0]
[1674234304411,85.89878578,22.139,22.113,10.0]
[1674234304601,10.0,22.138,22.113,10.0]
[1674234304808,27.87,22.13,22.113,10.0]
[1674234305024,37.0,22.129,22.111,10.0]
[1674234305242,33.9,22.128,22.106,10.0]
[1674234305460,37.0,22.127,22.106,10.0]
[1674234305685,33.9,22.126,22.106,10.0]
[1674234305878,20.0,22.125,22.106,10.0]
[1674234306497,20.0,22.128,22.106,10.0]
[1674234306919,33.9,22.127,22.106,10.0]
[1674234307141,20.0,22.126,22.106,10.0]
[1674234307778,52.01878578,22.137,22.106,10.0]
[1674234307779,33.89,22.136,22.11,27.69]
[1674234307995,33.88,22.139,22.111,33.93]
[1674234308310,33.88,22.139,22.112,10.0]
[1674234308495,33.88,22.139,22.113,33.92]
[1674234308705,33.88,22.139,22.114,10.0]
[1674234308917,33.88,22.143,22.115,50.92]
[1674234309134,33.88,22.143,22.115,167.3266]
[1674234309774,33.88,22.143,22.116,10.0]
[1674234309986,33.87,22.149,22.117,50.92]
[1674234310308,85.88878578,22.149,22.117,50.92]
[1674234310493,27.81,22.14,22.116,43.92]
[1674234310709,43.88,22.139,22.116,10.0]
[1674234310922,95.89878578,22.139,22.116,10.0]
[1674234311235,95.89878578,22.139,22.114,10.0]
[1674234311236,65.76320726,22.138,22.114,10.0]
[1674234311444,50.89,22.137,22.114,10.0]
[1674234311676,159.4,22.136,22.114,10.0]
[1674234311863,190.29,22.135,22.114,10.0]
[1674234312067,20.0,22.134,22.114,10.0]
[1674234312283,50.89,22.133,22.114,10.0]
[1674234312494,20.0,22.132,22.114,10.0]
[1674234312716,33.9,22.131,22.114,10.0]
[1674234312939,20.0,22.13,22.114,10.0]
[1674234313566,17.0,22.129,22.114,10.0]
[1674234313887,6.73705578,22.186,22.132,53.9]
[1674234314063,5.66297164,22.179,22.14,27.69]
[1674234314277,167.3,22.17,22.132,33.9]
[1674234314494,27.79,22.16,22.131,53.39190386]
[1674234314704,27.79,22.16,22.135,144.44778634]
[1674234314920,5.2344,22.169,22.136,17.0]
[1674234315133,139.4,22.169,22.136,53.38190386]
[1674234315461,139.4,22.169,22.137,36.49190386]
[1674234315655,139.4,22.169,22.139,10.0]
[1674234315872,139.4,22.169,22.14,17.0]
[1674234316059,139.4,22.179,22.141,33.88]
[1674234316275,139.4,22.179,22.142,17.0]
[1674234316493,139.4,22.179,22.143,33.88]
[1674234316813,139.4,22.179,22.145,10.0]
[1674234317005,139.4,22.179,22.146,17.0]
[1674234317441,139.4,22.179,22.15,27.69]
[1674234317769,5.389,22.178,22.152,10.0]
[1674234317973,5.389,22.179,22.152,10.0]
[1674234318189,5.389,22.179,22.153,33.86]
[1674234318505,5.387,22.186,22.155,10.0]
[1674234318692,27.79,22.18,22.157,10.0]
[1674234318898,5.389,22.179,22.157,122.1833]
[1674234319110,72.2653,22.187,22.157,122.1833]
[1674234319111,5.387,22.186,22.157,122.1833]
[1674234319334,5.387,22.186,22.158,17.0]
[1674234319645,5.387,22.186,22.161,10.0]
[1674234319850,5.387,22.186,22.162,17.0]
[1674234320073,5.385,22.197,22.163,33.85]
[1674234320280,5.385,22.197,22.17,27.9]
[1674234320489,18.045887,22.194,22.17,27.9]
[1674234320702,18.045887,22.194,22.172,10.0]
[1674234321025,18.045887,22.194,22.173,50.83]
[1674234321636,3634.648432,22.2,22.174,10.0]
[1674234321869,3634.648432,22.2,22.175,33.83]
[1674234322084,3629.258432,22.2,22.176,17.0]
[1674234322476,3629.258432,22.2,22.175,33.83]
[1674234322689,3634.648432,22.2,22.176,10.0]
[1674234323638,3662.548432,22.2,22.176,10.0]
[1674234324066,3825.65877758,22.2,22.174,10.0]
[1674234324283,10.0,22.199,22.172,10.0]
[1674234324492,10.6254,22.198,22.172,10.0]
[1674234324711,20.0,22.197,22.172,10.0]
[1674234324898,5.392,22.196,22.172,10.0]
[1674234325110,20.0,22.195,22.172,10.0]
[1674234325328,4.892,22.196,22.172,10.0]
[1674234325524,4.891,22.199,22.174,10.0]
[1674234325740,3652.191528,22.2,22.175,33.83]
[1674234325959,3652.191528,22.2,22.18,27.9]
[1674234326175,3647.300528,22.2,22.18,27.9]
[1674234326368,3647.300528,22.2,22.177,33.83]
[1674234326583,3647.300528,22.2,22.179,10.0]
[1674234326794,3647.300528,22.2,22.181,10.0]
[1674234326795,3629.258432,22.2,22.181,10.0]
[1674234327005,3629.258432,22.2,22.182,17.0]
[1674234327216,20.0,22.199,22.182,17.0]
[1674234327551,20.0,22.199,22.183,10.0]
[1674234329016,20.0,22.199,22.177,10.0]
[1674234329534,17.0,22.198,22.177,10.0]
[1674234329742,20.0,22.197,22.177,10.0]
[1674234330280,4.891,22.199,22.18,27.69]
[1674234330517,3629.258432,22.2,22.19,27.9]
[1674234330689,3140.162432,22.2,22.19,27.9]
[1674234330899,3106.732732,22.2,22.192,10.0]
[1674234332161,3106.732732,22.2,22.183,28.93521948]
[1674234332162,20.0,22.199,22.183,28.93521948]
[1674234332370,24.891,22.199,22.183,10.0]
[1674234332813,20.0,22.199,22.183,10.0]
[1674234333008,2503.63917764,22.2,22.19,27.77]
[1674234333335,1440.35887764,22.2,22.191,52.74521948]
[1674234333551,990.53277764,22.2,22.192,0.96]
[1674234333858,844.10547764,22.2,22.193,33.8]
[1674234334071,844.10547764,22.2,22.194,10.96]
[1674234334288,844.10547764,22.2,22.195,70.8]
[1674234334479,844.10547764,22.2,22.196,10.0]
[1674234334695,844.10547764,22.2,22.194,10.0]
[1674234335939,724.19817764,22.2,22.195,72.73521948]
[1674234336164,724.19817764,22.2,22.195,53.8]
[1674234336379,664.19817764,22.2,22.196,18.93521948]
[1674234336686,289.87663969,22.2,22.197,64.76]
[1674234336908,289.87663969,22.2,22.198,5.19797]
[1674234337102,289.87663969,22.2,22.199,34.75]
[1674234337316,289.87663969,22.2,22.199,53.68521948]
[1674234337527,289.87663969,22.2,22.199,52.72521948]
[1674234337741,289.87663969,22.2,22.199,94.38977673]
[1674234337959,289.87663969,22.2,22.194,33.8]
[1674234338155,289.87663969,22.2,22.194,18.39457134]
[1674234339519,289.87663969,22.2,22.195,27.0]
[1674234339941,289.87663969,22.2,22.196,19.35457134]
[1674234340151,289.87663969,22.2,22.197,20.0]
[1674234340376,289.87663969,22.2,22.197,55.39457134]
[1674234340591,255.60825169,22.2,22.198,18.39457134]
[1674234341237,244.60825169,22.2,22.198,18.39457134]
[1674234341552,244.60825169,22.2,22.199,10.0]
[1674234341951,244.60825169,22.2,22.199,28.39457134]
[1674234342179,244.60825169,22.2,22.199,33.59230134]
[1674234342494,62.6640156,22.201,22.2,10.0]
[1674234342681,33.75,22.227,22.201,10.0]
[1674234342893,33.75,22.229,22.22,27.77]
[1674234343107,33.74,22.237,22.22,27.77]
[1674234343425,33.74,22.237,22.221,68.35773138]
[1674234343756,33.74,22.237,22.23,27.77]
[1674234344576,33.73,22.239,22.23,27.77]
[1674234344787,43.73,22.24,22.23,27.77]
[1674234345647,43.73,22.24,22.22,27.77]
[1674234346280,43.73,22.24,22.23,27.9]
[1674234346700,10.0,22.24,22.23,27.9]
[1674234347016,43.73,22.24,22.23,27.9]
[1674234347205,10.0,22.24,22.23,27.9]
[1674234347418,43.73,22.24,22.22,27.77]
[1674234347745,43.73,22.24,22.212,116.8054]
[1674234347966,43.73,22.24,22.21,27.9]
[1674234348167,20.0,22.239,22.21,27.9]
[1674234348355,10.0,22.237,22.21,27.9]
[1674234348571,50.74,22.236,22.21,27.9]
[1674234349009,33.74,22.236,22.21,27.9]
[1674234349336,10.0,22.235,22.211,10.0]
[1674234349521,33.74,22.234,22.211,10.0]
[1674234350252,10.0,22.233,22.21,46.29457134]
[1674234350467,33.74,22.232,22.21,27.9]
[1674234350677,119.9768,22.231,22.21,27.9]
[1674234350893,33.75,22.23,22.21,27.9]
[1674234351409,10.0,22.229,22.21,27.9]
[1674234351614,33.75,22.228,22.21,27.9]
[1674234352676,33.75,22.228,22.202,111.1999]
[1674234352885,10.0,22.227,22.2,27.69]
[1674234353117,50.75,22.226,22.2,27.69]
[1674234353302,10.0,22.225,22.2,27.69]
[1674234353513,10.0,22.223,22.2,27.69]
[1674234353722,33.76,22.222,22.2,27.69]
[1674234353966,17.0,22.221,22.2,27.69]
[1674234354262,33.76,22.22,22.196,118.6336]
[1674234354483,10.0,22.219,22.19,27.64]